[Event "Schack-SM 2023: Mastarklassen-elit"]
[Site "Helsingborg Arena, Mellersta Stenbocksgatan 14, Helsingborg, Sweden"]
[Date "2023.07.09"]
[Round "9.2"]
[White "Lindberg, Bengt"]
[Black "Crevatin, Leo"]
[Result "1/2-1/2"]
[TimeControl "90 minutes for 40 moves + 30 minutes for the rest of games + 30 seconds per move from move one."]
[WhiteTitle "IM"]
[BlackTitle "FM"]
[WhiteElo "2353"]
[BlackElo "2265"]

1. e4 {[%clk 01:30:54]} {[%emt 00:00:05]} c6 {[%clk 01:30:54]} {[%emt
00:00:07]} 2. d4 {[%clk 01:31:06]} {[%emt 00:00:17]} d5 {[%clk 01:31:20]}
{[%emt 00:00:03]} 3. e5 {[%clk 01:31:25]} {[%emt 00:00:13]} Bf5 {[%clk
01:30:21]} {[%emt 00:01:30]} 4. Nf3 {[%clk 01:28:29]} {[%emt 00:03:24]} e6
{[%clk 01:30:45]} {[%emt 00:00:07]} 5. a3 {[%clk 01:28:42]} {[%emt 00:00:17]}
Nd7 {[%clk 01:27:32]} {[%emt 00:03:43]} 6. Be2 {[%clk 01:29:04]} {[%emt
00:00:08]} h6 {[%clk 01:22:33]} {[%emt 00:05:29]} 7. O-O {[%clk 01:29:13]}
{[%emt 00:00:20]} Ne7 {[%clk 01:22:13]} {[%emt 00:00:51]} 8. Nbd2 {[%clk
01:25:46]} {[%emt 00:03:56]} Qc7 {[%clk 01:18:02]} {[%emt 00:04:40]} 9. Re1
{[%clk 01:21:04]} {[%emt 00:05:13]} g5 {[%clk 01:14:54]} {[%emt 00:03:38]} 10.
Nf1 {[%clk 01:20:00]} {[%emt 00:01:34]} Bg6 {[%clk 01:10:42]} {[%emt 00:04:43]}
11. Ne3 {[%clk 01:11:30]} {[%emt 00:08:59]} Nf5 {[%clk 01:04:30]} {[%emt
00:06:43]} 12. Nxf5 {[%clk 01:08:27]} {[%emt 00:03:33]} Bxf5 {[%clk 01:02:43]}
{[%emt 00:02:18]} 13. Bd2 {[%clk 01:07:35]} {[%emt 00:01:21]} Be7 {[%clk
01:01:13]} {[%emt 00:01:59]} 14. Bb4 {[%clk 01:07:26]} {[%emt 00:00:40]} g4
{[%clk 00:53:23]} {[%emt 00:08:20]} 15. Nd2 {[%clk 01:07:43]} {[%emt 00:00:13]}
Bxb4 {[%clk 00:53:28]} {[%emt 00:00:25]} 16. axb4 {[%clk 01:08:10]} {[%emt
00:00:03]} h5 {[%clk 00:52:42]} {[%emt 00:01:15]} 17. Nf1 {[%clk 01:07:22]}
{[%emt 00:01:19]} a6 {[%clk 00:50:38]} {[%emt 00:02:34]} 18. Ne3 {[%clk
01:00:32]} {[%emt 00:07:19]} Bg6 {[%clk 00:50:36]} {[%emt 00:00:32]} 19. b3
{[%clk 00:50:37]} {[%emt 00:10:25]} Rd8 {[%clk 00:48:14]} {[%emt 00:02:52]} 20.
Qd2 {[%clk 00:48:49]} {[%emt 00:02:18]} Nf8 {[%clk 00:40:51]} {[%emt 00:07:53]}
21. c4 {[%clk 00:45:03]} {[%emt 00:04:16]} Nd7 {[%clk 00:38:05]} {[%emt
00:03:17]} 22. cxd5 {[%clk 00:38:30]} {[%emt 00:07:02]} exd5 {[%clk 00:36:42]}
{[%emt 00:01:54]} 23. Bd3 {[%clk 00:37:07]} {[%emt 00:01:52]} Nf8 {[%clk
00:35:32]} {[%emt 00:01:40]} 24. Rf1 {[%clk 00:30:23]} {[%emt 00:07:14]} Ne6
{[%clk 00:23:20]} {[%emt 00:12:43]} 25. Bf5 {[%clk 00:30:47]} {[%emt 00:00:05]}
Qe7 {[%clk 00:21:46]} {[%emt 00:02:05]} 26. f4 {[%clk 00:24:59]} {[%emt
00:06:17]} O-O {[%clk 00:15:51]} {[%emt 00:06:26]} 27. Qd3 {[%clk 00:19:35]}
{[%emt 00:05:53]} Ng7 {[%clk 00:14:07]} {[%emt 00:02:14]} 28. Bxg6 fxg6 {[%clk
00:14:36]} 29. Qxg6 {[%clk 00:17:38]} {[%emt 00:01:33]} Qxb4 {[%clk 00:12:07]}
{[%emt 00:03:00]} 30. Qd3 {[%clk 00:17:54]} {[%emt 00:00:13]} c5 {[%clk
00:10:29]} {[%emt 00:02:10]} 31. Nc2 {[%clk 00:12:18]} {[%emt 00:06:06]} c4
{[%clk 00:08:16]} {[%emt 00:02:44]} 32. bxc4 {[%clk 00:07:06]} {[%emt
00:05:40]} Qxc4 {[%clk 00:07:10]} {[%emt 00:01:37]} 33. Qd2 {[%clk 00:07:28]}
{[%emt 00:00:06]} Nf5 {[%clk 00:06:26]} {[%emt 00:01:16]} 34. Rad1 {[%clk
00:07:42]} {[%emt 00:00:15]} Qb3 {[%clk 00:05:24]} {[%emt 00:01:31]} 35. Rb1
{[%clk 00:04:59]} {[%emt 00:03:14]} Qa2 {[%clk 00:03:57]} {[%emt 00:01:58]} 36.
Ra1 {[%clk 00:03:40]} {[%emt 00:01:48]} Qc4 {[%clk 00:03:49]} {[%emt 00:00:39]}
37. Rfd1 {[%clk 00:03:13]} {[%emt 00:00:55]} Rc8 {[%clk 00:03:35]} {[%emt
00:00:46]} 38. Ne3 {[%clk 00:00:50]} {[%emt 00:02:52]} Nxe3 {[%clk 00:03:25]}
{[%emt 00:00:40]} 39. Qxe3 {[%clk 00:01:18]} {[%emt 00:00:02]} Qc3 {[%clk
00:03:18]} {[%emt 00:00:37]} 40. Qf2 {[%clk 00:00:56]} {[%emt 00:00:50]} Qc2
{[%clk 00:01:49]} {[%emt 00:02:00]} 41. Qh4 {[%clk 00:19:56]} {[%emt 00:11:31]}
Qf5 {[%clk 00:28:51]} {[%emt 00:03:28]} 42. Rf1 {[%clk 00:20:21]} {[%emt
00:00:06]} Rc4 {[%clk 00:23:30]} {[%emt 00:05:50]} 43. Rad1 {[%clk 00:19:38]}
{[%emt 00:01:12]} Rc2 {[%clk 00:13:47]} {[%emt 00:10:15]} 44. Rde1 {[%clk
00:19:12]} {[%emt 00:00:55]} Rc6 {[%clk 00:07:09]} {[%emt 00:07:08]} 45. e6
{[%clk 00:19:35]} {[%emt 00:00:07]} Rxe6 {[%clk 00:06:54]} {[%emt 00:00:45]} 46.
Rxe6 {[%clk 00:20:03]} {[%emt 00:00:03]} Qxe6 {[%clk 00:07:18]} {[%emt
00:00:06]} 47. Qg5+ {[%clk 00:20:26]} {[%emt 00:00:06]} Kh8 {[%clk 00:06:38]}
{[%emt 00:01:08]} 48. Qxh5+ {[%clk 00:20:49]} {[%emt 00:00:08]} Kg8 {[%clk
00:06:46]} {[%emt 00:00:23]} 49. Qg5+ {[%clk 00:17:43]} {[%emt 00:03:36]} Kh8
{[%clk 00:05:30]} {[%emt 00:01:47]} 50. f5 {[%clk 00:17:11]} {[%emt 00:01:00]}
Qe4 {[%clk 00:04:21]} {[%emt 00:01:39]} 51. Qh6+ {[%clk 00:08:48]} {[%emt
00:08:53]} Kg8 {[%clk 00:04:45]} {[%emt 00:00:08]} 52. Kh1 {[%clk 00:09:03]}
{[%emt 00:00:13]} Qxd4 {[%clk 00:02:37]} {[%emt 00:02:40]} 53. f6 {[%clk
00:09:07]} {[%emt 00:00:25]} Rf7 {[%clk 00:02:39]} {[%emt 00:00:28]} 54. h3
{[%clk 00:02:56]} {[%emt 00:06:41]} gxh3 {[%clk 00:02:14]} {[%emt 00:00:55]} 55.
Rf3 {[%clk 00:03:13]} {[%emt 00:00:13]} hxg2+ {[%clk 00:01:44]} {[%emt
00:01:01]} 56. Kxg2 {[%clk 00:03:41]} {[%emt 00:00:01]} Qe4 {[%clk 00:01:11]}
{[%emt 00:01:03]} 57. Kf2 {[%clk 00:02:55]} {[%emt 00:01:15]} Qd4+ {[%clk
00:00:39]} {[%emt 00:01:04]} 58. Kg2 {[%clk 00:02:24]} {[%emt 00:00:59]} Qe4
{[%clk 00:01:06]} {[%emt 00:00:04]} 59. Kf2 {[%clk 00:02:08]} {[%emt 00:00:45]}
Qd4+ {[%clk 00:01:34]} {[%emt 00:00:03]} 1/2-1/2

[Event "Schack-SM 2023: Junior-SM"]
[Site "Helsingborg Arena, Mellersta Stenbocksgatan 14, Helsingborg, Sweden"]
[Date "2023.07.09"]
[Round "9.5"]
[White "Persson, Sebastian 2007"]
[Black "Lindholm, Gustav"]
[Result "1/2-1/2"]
[TimeControl "90 minutes for 40 moves + 30 minutes for the rest of the game + 30 seconds per move from move one."]
[WhiteElo "1947"]
[BlackElo "2155"]

1. d4 {[%clk 01:30:56]} {[%emt 00:00:03]} d5 {[%clk 01:30:54]} {[%emt
00:00:06]} 2. Nf3 {[%clk 01:31:21]} {[%emt 00:00:05]} Nf6 {[%clk 01:31:19]}
{[%emt 00:00:06]} 3. c4 {[%clk 01:31:46]} {[%emt 00:00:05]} c6 {[%clk
01:31:46]} {[%emt 00:00:03]} 4. cxd5 {[%clk 01:32:10]} {[%emt 00:00:06]} cxd5
{[%clk 01:32:10]} {[%emt 00:00:06]} 5. Nc3 {[%clk 01:32:33]} {[%emt 00:00:06]}
Nc6 {[%clk 01:32:36]} {[%emt 00:00:03]} 6. Bf4 {[%clk 01:32:48]} {[%emt
00:00:15]} a6 {[%clk 01:32:59]} {[%emt 00:00:08]} 7. e3 {[%clk 01:33:10]}
{[%emt 00:00:07]} Bg4 {[%clk 01:33:25]} {[%emt 00:00:05]} 8. Be2 {[%clk
01:33:31]} {[%emt 00:00:08]} e6 {[%clk 01:33:00]} {[%emt 00:00:56]} 9. h3
{[%clk 01:33:47]} {[%emt 00:00:12]} Bxf3 {[%clk 01:33:12]} {[%emt 00:00:19]} 10.
Bxf3 {[%clk 01:34:09]} {[%emt 00:00:08]} Bd6 {[%clk 01:33:39]} {[%emt
00:00:04]} 11. Bxd6 {[%clk 01:32:59]} {[%emt 00:01:40]} Qxd6 {[%clk 01:34:05]}
{[%emt 00:00:04]} 12. O-O {[%clk 01:33:19]} {[%emt 00:00:10]} O-O {[%clk
01:34:30]} {[%emt 00:00:05]} 13. Rc1 {[%clk 01:33:15]} {[%emt 00:00:33]} Rfc8
{[%clk 01:28:08]} {[%emt 00:06:53]} 14. Na4 {[%clk 01:28:25]} {[%emt 00:05:20]}
Nd7 {[%clk 01:26:20]} {[%emt 00:02:18]} 15. Nc5 {[%clk 01:23:49]} {[%emt
00:05:06]} b6 {[%clk 01:24:20]} {[%emt 00:02:31]} 16. Nd3 {[%clk 01:19:08]}
{[%emt 00:05:10]} Na5 {[%clk 01:21:18]} {[%emt 00:03:32]} 17. b3 {[%clk
01:19:22]} {[%emt 00:00:16]} Nc6 {[%clk 01:20:42]} {[%emt 00:01:07]} 18. Rc2
{[%clk 01:17:16]} {[%emt 00:02:35]} Na7 {[%clk 01:20:35]} {[%emt 00:00:37]} 19.
Rxc8+ {[%clk 01:16:17]} {[%emt 00:01:29]} Rxc8 {[%clk 01:20:38]} {[%emt
00:00:27]} 20. Qd2 {[%clk 01:16:41]} {[%emt 00:00:06]} Qb8 {[%clk 01:12:33]}
{[%emt 00:08:35]} 21. Rc1 {[%clk 01:16:34]} {[%emt 00:00:37]} Nb5 {[%clk
01:12:32]} {[%emt 00:00:31]} 22. a4 {[%clk 01:15:19]} {[%emt 00:01:45]} Nd6
{[%clk 01:12:50]} {[%emt 00:00:12]} 23. Nb4 {[%clk 01:12:54]} {[%emt 00:02:54]}
Qb7 {[%clk 01:12:33]} {[%emt 00:00:47]} 24. Rc2 {[%clk 00:58:51]} {[%emt
00:14:33]} a5 {[%clk 01:07:44]} {[%emt 00:05:20]} 25. Nd3 {[%clk 00:58:58]}
{[%emt 00:00:22]} Kf8 {[%clk 00:59:25]} {[%emt 00:08:49]} 26. Qc1 {[%clk
00:59:00]} {[%emt 00:00:28]} Rxc2 {[%clk 00:56:05]} {[%emt 00:03:49]} 27. Qxc2
{[%clk 00:58:08]} {[%emt 00:01:22]} Ke7 {[%clk 00:55:15]} {[%emt 00:01:21]} 28.
Nf4 {[%clk 00:54:26]} {[%emt 00:04:12]} g6 {[%clk 00:53:27]} {[%emt 00:02:18]}
29. h4 {[%clk 00:53:17]} {[%emt 00:01:37]} Qc8 {[%clk 00:52:45]} {[%emt
00:01:13]} 30. Qxc8 {[%clk 00:52:35]} {[%emt 00:01:12]} Nxc8 {[%clk 00:48:05]}
{[%emt 00:05:10]} 31. Kf1 {[%clk 00:51:57]} {[%emt 00:01:07]} Nd6 {[%clk
00:46:50]} {[%emt 00:01:46]} 32. Be2 {[%clk 00:46:24]} {[%emt 00:06:03]} Ne4
{[%clk 00:46:28]} {[%emt 00:00:52]} 33. Ke1 {[%clk 00:46:43]} {[%emt 00:00:09]}
Kd6 {[%clk 00:46:11]} {[%emt 00:00:46]} 34. Bd3 {[%clk 00:46:10]} {[%emt
00:01:04]} Nc3 {[%clk 00:43:14]} {[%emt 00:03:28]} 35. Kd2 {[%clk 00:45:38]}
{[%emt 00:01:02]} Na2 {[%clk 00:43:36]} {[%emt 00:00:09]} 36. Bb5 {[%clk
00:44:03]} {[%emt 00:02:05]} Nf6 {[%clk 00:42:05]} {[%emt 00:02:01]} 37. f3
{[%clk 00:43:19]} {[%emt 00:01:13]} Nb4 {[%clk 00:42:17]} {[%emt 00:00:19]} 38.
Nd3 {[%clk 00:42:24]} {[%emt 00:01:25]} Nxd3 {[%clk 00:42:23]} {[%emt
00:00:24]} 39. Kxd3 {[%clk 00:42:44]} {[%emt 00:00:10]} Nh5 {[%clk 00:40:43]}
{[%emt 00:02:08]} 40. g4 {[%clk 00:39:57]} {[%emt 00:03:18]} Nf6 {[%clk
00:38:07]} {[%emt 00:03:06]} 41. Ke2 {[%clk 00:37:25]} {[%emt 00:03:03]} Ng8
{[%clk 00:35:26]} {[%emt 00:03:10]} 42. Kf2 {[%clk 00:35:51]} {[%emt 00:02:05]}
f6 {[%clk 00:34:51]} {[%emt 00:01:04]} 43. g5 {[%clk 00:26:41]} {[%emt
00:09:40]} e5 {[%clk 00:32:01]} {[%emt 00:03:20]} 44. f4 {[%clk 00:24:58]}
{[%emt 00:32:13]} exf4 {[%clk 00:54:31]} {[%emt 00:08:02]} 45. exf4 {[%clk
00:25:19]} {[%emt 00:00:08]} Ke6 {[%clk 00:53:31]} {[%emt 00:01:29]} 46. Bf1
{[%clk 00:17:48]} {[%emt 00:08:01]} fxg5 {[%clk 00:33:00]} {[%emt 00:21:01]} 47.
fxg5 {[%clk 00:18:07]} {[%emt 00:00:11]} Ne7 {[%clk 00:33:04]} {[%emt
00:00:27]} 48. Bh3+ {[%clk 00:18:08]} {[%emt 00:00:29]} Kd6 {[%clk 00:33:27]}
{[%emt 00:00:08]} 49. Ke3 {[%clk 00:17:38]} {[%emt 00:00:59]} Nc6 {[%clk
00:33:44]} {[%emt 00:00:13]} 50. Bg4 {[%clk 00:17:27]} {[%emt 00:00:41]} Nb4
{[%clk 00:31:11]} {[%emt 00:03:03]} 51. h5 {[%clk 00:12:06]} {[%emt 00:05:50]}
Nc2+ {[%clk 00:30:41]} {[%emt 00:01:00]} 52. Kd3 {[%clk 00:12:22]} {[%emt
00:00:14]} Nb4+ {[%clk 00:27:46]} {[%emt 00:03:27]} 53. Kc3 {[%clk 00:10:27]}
{[%emt 00:02:23]} Nc6 {[%clk 00:26:59]} {[%emt 00:01:18]} 54. Kd3 {[%clk
00:08:25]} {[%emt 00:02:31]} Nd8 {[%clk 00:26:37]} {[%emt 00:00:53]} 55. hxg6
{[%clk 00:08:11]} {[%emt 00:00:44]} 1/2-1/2

[Event "Schack-SM 2023: Mastarklassen"]
[Site "Helsingborg Arena, Mellersta Stenbocksgatan 14, Helsingborg, Sweden"]
[Date "2023.07.09"]
[Round "9.8"]
[White "Carlstrom, Niklas"]
[Black "Soppela, Toni"]
[Result "1-0"]
[TimeControl "90 minutes for 40 moves + 30 minutes for the rest of games + 30 seconds per move from move one."]
[WhiteElo "2125"]
[BlackElo "2032"]

1. d4 {[%clk 01:30:41]} {[%emt 00:00:17]} Nf6 {[%clk 01:30:23]} {[%emt
00:00:39]} 2. Nc3 {[%clk 01:30:54]} {[%emt 00:00:17]} c5 {[%clk 01:28:47]}
{[%emt 00:02:06]} 3. dxc5 {[%clk 01:30:44]} {[%emt 00:00:39]} Na6 {[%clk
01:25:47]} {[%emt 00:03:31]} 4. e4 {[%clk 01:30:37]} {[%emt 00:00:37]} Nxc5
{[%clk 01:25:31]} {[%emt 00:00:46]} 5. e5 {[%clk 01:30:33]} {[%emt 00:00:33]}
Ng8 {[%clk 01:25:50]} {[%emt 00:00:12]} 6. Nf3 {[%clk 01:29:30]} {[%emt
00:01:32]} g6 {[%clk 01:24:56]} {[%emt 00:01:24]} 7. Be3 {[%clk 01:24:37]}
{[%emt 00:05:23]} Ne6 {[%clk 01:21:03]} {[%emt 00:04:24]} 8. Qd2 {[%clk
01:22:29]} {[%emt 00:02:37]} Bg7 {[%clk 01:18:33]} {[%emt 00:03:01]} 9. Bc4
{[%clk 01:18:44]} {[%emt 00:04:14]} Qc7 {[%clk 01:16:26]} {[%emt 00:02:38]} 10.
Bxe6 {[%clk 01:12:44]} {[%emt 00:06:30]} fxe6 {[%clk 01:14:07]} {[%emt
00:02:48]} 11. Nb5 {[%clk 01:08:07]} {[%emt 00:05:06]} Qb8 {[%clk 00:43:52]}
{[%emt 00:30:46]} 12. Qc3 {[%clk 01:05:44]} {[%emt 00:02:52]} Kd8 {[%clk
00:40:22]} {[%emt 00:04:02]} 13. O-O-O {[%clk 00:49:58]} {[%emt 00:16:15]} a6
{[%clk 00:36:24]} {[%emt 00:04:29]} 14. Bb6+ {[%clk 00:50:01]} {[%emt
00:00:26]} 1-0

[Event "Schack-SM 2023: Sverigemastarklassen"]
[Site "Helsingborg Arena, Mellersta Stenbocksgatan 14, Helsingborg, Sweden"]
[Date "2023.07.09"]
[Round "9.4"]
[White "Hector, Jonny"]
[Black "Ernst, Thomas"]
[Result "0-1"]
[TimeControl "90 minutes for 40 moves + 30 minutes for the rest of the game + 30 seconds per move from move one."]
[WhiteTitle "GM"]
[BlackTitle "GM"]
[WhiteFideId "1700090"]
[BlackFideId "1700065"]
[WhiteElo "2481"]
[BlackElo "2288"]

1. e4 {[%clk 01:30:54]} {[%emt 00:00:03]} e5 {[%clk 01:30:52]} {[%emt
00:00:10]} 2. Nf3 {[%clk 01:31:13]} {[%emt 00:00:10]} Nc6 {[%clk 01:31:14]}
{[%emt 00:00:08]} 3. d4 {[%clk 01:31:25]} {[%emt 00:00:18]} exd4 {[%clk
01:31:28]} {[%emt 00:00:17]} 4. Nxd4 {[%clk 01:31:49]} {[%emt 00:00:06]} Nf6
{[%clk 01:31:42]} {[%emt 00:00:16]} 5. Nxc6 {[%clk 01:32:07]} {[%emt 00:00:12]}
bxc6 {[%clk 01:32:04]} {[%emt 00:00:08]} 6. e5 {[%clk 01:32:26]} {[%emt
00:00:11]} Qe7 {[%clk 01:32:10]} {[%emt 00:00:24]} 7. Qe2 {[%clk 01:32:47]}
{[%emt 00:00:09]} Nd5 {[%clk 01:32:32]} {[%emt 00:00:09]} 8. h4 {[%clk
01:33:08]} {[%emt 00:00:09]} d6 {[%clk 01:32:13]} {[%emt 00:00:50]} 9. c4
{[%clk 01:31:44]} {[%emt 00:01:53]} Nb6 {[%clk 01:32:25]} {[%emt 00:00:18]} 10.
exd6 {[%clk 01:28:50]} {[%emt 00:03:24]} Qxe2+ {[%clk 01:32:20]} {[%emt
00:00:35]} 11. Bxe2 {[%clk 01:29:04]} {[%emt 00:00:15]} cxd6 {[%clk 01:32:31]}
{[%emt 00:00:21]} 12. Be3 {[%clk 01:18:34]} {[%emt 00:11:00]} Be6 {[%clk
01:28:20]} {[%emt 00:04:41]} 13. Nd2 {[%clk 01:18:30]} {[%emt 00:00:33]} Be7
{[%clk 01:28:18]} {[%emt 00:00:33]} 14. Rc1 {[%clk 01:12:28]} {[%emt 00:06:32]}
O-O {[%clk 01:24:26]} {[%emt 00:04:22]} 15. h5 {[%clk 01:09:14]} {[%emt
00:03:43]} Bf6 {[%clk 01:18:03]} {[%emt 00:06:53]} 16. b3 {[%clk 01:07:09]}
{[%emt 00:02:37]} d5 {[%clk 01:18:16]} {[%emt 00:00:17]} 17. cxd5 {[%clk
00:59:30]} {[%emt 00:08:09]} Nxd5 {[%clk 01:18:19]} {[%emt 00:00:27]} 18. Bc5
{[%clk 00:56:33]} {[%emt 00:03:26]} Rfd8 {[%clk 01:17:28]} {[%emt 00:01:19]} 19.
Ne4 {[%clk 00:54:10]} {[%emt 00:02:54]} Be5 {[%clk 01:16:16]} {[%emt 00:01:42]}
20. g3 {[%clk 00:46:49]} {[%emt 00:07:51]} Bf5 {[%clk 01:10:30]} {[%emt
00:06:16]} 21. Rh4 {[%clk 00:45:13]} {[%emt 00:02:06]} a5 {[%clk 01:06:45]}
{[%emt 00:04:16]} 22. Kf1 {[%clk 00:40:21]} {[%emt 00:05:22]} h6 {[%clk
00:57:30]} {[%emt 00:09:45]} 23. Bf3 {[%clk 00:35:50]} {[%emt 00:05:00]} Kh8
{[%clk 00:54:08]} {[%emt 00:03:52]} 24. Kg2 {[%clk 00:31:25]} {[%emt 00:04:55]}
Nb4 {[%clk 00:48:29]} {[%emt 00:06:09]} 25. Be3 {[%clk 00:24:08]} {[%emt
00:07:47]} Bb2 {[%clk 00:44:46]} {[%emt 00:04:12]} 26. Rb1 {[%clk 00:20:28]}
{[%emt 00:04:12]} Be5 {[%clk 00:45:01]} {[%emt 00:00:13]} 27. a3 {[%clk
00:19:22]} {[%emt 00:01:39]} Nc2 {[%clk 00:42:35]} {[%emt 00:02:54]} 28. Bb6
{[%clk 00:17:30]} {[%emt 00:02:23]} Rdb8 {[%clk 00:34:48]} {[%emt 00:08:17]} 29.
Bc5 {[%clk 00:17:48]} {[%emt 00:00:11]} a4 {[%clk 00:22:45]} {[%emt 00:12:34]}
30. b4 {[%clk 00:14:14]} {[%emt 00:04:04]} Nxa3 {[%clk 00:22:00]} {[%emt
00:01:14]} 31. Rc1 {[%clk 00:12:58]} {[%emt 00:01:46]} Nb5 {[%clk 00:20:10]}
{[%emt 00:02:19]} 32. Nd2 {[%clk 00:12:15]} {[%emt 00:01:15]} Bb2 {[%clk
00:18:50]} {[%emt 00:01:47]} 33. Rg1 {[%clk 00:11:16]} {[%emt 00:01:30]} Ra6
{[%clk 00:13:39]} {[%emt 00:05:41]} 34. Nc4 {[%clk 00:09:15]} {[%emt 00:02:32]}
a3 {[%clk 00:12:18]} {[%emt 00:01:51]} 35. Rhh1 {[%clk 00:09:29]} {[%emt
00:00:16]} Bc3 {[%clk 00:08:50]} {[%emt 00:03:57]} 36. Na5 {[%clk 00:08:25]}
{[%emt 00:01:35]} Rc8 {[%clk 00:08:20]} {[%emt 00:01:00]} 37. Be2 {[%clk
00:05:49]} {[%emt 00:03:06]} a2 {[%clk 00:06:37]} {[%emt 00:02:13]} 38. f3
{[%clk 00:03:45]} {[%emt 00:02:35]} Bd7 {[%clk 00:01:33]} {[%emt 00:05:34]} 39.
Bc4 {[%clk 00:02:20]} {[%emt 00:01:54]} Be6 {[%clk 00:01:44]} {[%emt 00:00:20]}
40. Bxe6 {[%clk 00:01:53]} {[%emt 00:00:57]} fxe6 {[%clk 00:02:08]} {[%emt
00:00:06]} 41. Ra1 {[%clk 00:24:39]} {[%emt 00:07:44]} Bxa1 {[%clk 00:32:30]}
{[%emt 00:00:08]} 42. Rxa1 {[%clk 00:25:05]} {[%emt 00:00:03]} Nc3 {[%clk
00:32:39]} {[%emt 00:00:19]} 43. Bd4 {[%clk 00:25:27]} {[%emt 00:00:09]} Nd5
{[%clk 00:32:14]} {[%emt 00:00:55]} 44. Bc5 {[%clk 00:25:48]} {[%emt 00:00:10]}
Rb8 {[%clk 00:31:20]} {[%emt 00:01:23]} 45. Rxa2 {[%clk 00:25:43]} {[%emt
00:00:35]} Nxb4 {[%clk 00:31:36]} {[%emt 00:00:15]} 46. Ra4 {[%clk 00:26:02]}
{[%emt 00:00:11]} Nd5 {[%clk 00:30:44]} {[%emt 00:01:21]} 47. Bf2 {[%clk
00:26:17]} {[%emt 00:00:15]} Rb5 {[%clk 00:29:20]} {[%emt 00:01:54]} 48. Be1
{[%clk 00:26:42]} {[%emt 00:00:05]} c5 {[%clk 00:29:21]} {[%emt 00:00:29]} 49.
Kh3 {[%clk 00:26:06]} {[%emt 00:01:06]} Nb4 {[%clk 00:29:17]} {[%emt 00:00:34]}
0-1

[Event "Schack-SM 2023: Mastarklassen-elit"]
[Site "Helsingborg Arena, Mellersta Stenbocksgatan 14, Helsingborg, Sweden"]
[Date "2023.07.09"]
[Round "9.3"]
[White "Lind, Jan-Olov"]
[Black "Lokander, Martin"]
[Result "0-1"]
[TimeControl "90 minutes for 40 moves + 30 minutes for the rest of games + 30 seconds per move from move one."]
[BlackTitle "IM"]
[WhiteElo "2191"]
[BlackElo "2444"]

1. e4 {[%clk 01:30:57]} {[%emt 00:00:02]} Nf6 {[%clk 01:30:55]} {[%emt
00:00:06]} 2. d3 {[%clk 01:30:51]} {[%emt 00:00:35]} e5 {[%clk 01:31:07]}
{[%emt 00:00:19]} 3. Nf3 {[%clk 01:30:35]} {[%emt 00:00:45]} Nc6 {[%clk
01:31:33]} {[%emt 00:00:05]} 4. Be2 {[%clk 01:30:58]} {[%emt 00:00:07]} d5
{[%clk 01:31:58]} {[%emt 00:00:05]} 5. Nbd2 {[%clk 01:31:22]} {[%emt 00:00:06]}
g5 {[%clk 01:32:26]} {[%emt 00:00:03]} 6. exd5 {[%clk 01:19:29]} {[%emt
00:12:22]} Nxd5 {[%clk 01:32:30]} {[%emt 00:00:26]} 7. Nc4 {[%clk 01:18:00]}
{[%emt 00:01:59]} Nf4 {[%clk 01:32:56]} {[%emt 00:00:05]} 8. Bf1 {[%clk
01:10:56]} {[%emt 00:07:33]} Qe7 {[%clk 01:12:38]} {[%emt 00:20:49]} 9. Nfd2
{[%clk 00:56:31]} {[%emt 00:14:53]} b5 {[%clk 01:08:43]} {[%emt 00:04:26]} 10.
Ne3 {[%clk 00:55:36]} {[%emt 00:01:24]} Bb7 {[%clk 01:08:59]} {[%emt 00:00:15]}
11. h4 {[%clk 00:50:35]} {[%emt 00:05:30]} gxh4 {[%clk 01:06:47]} {[%emt
00:02:43]} 12. Nf5 {[%clk 00:47:08]} {[%emt 00:03:57]} Qe6 {[%clk 01:05:00]}
{[%emt 00:02:17]} 13. Nxh4 {[%clk 00:46:21]} {[%emt 00:01:17]} O-O-O {[%clk
01:04:43]} {[%emt 00:00:48]} 14. g3 {[%clk 00:39:27]} {[%emt 00:07:23]} Nd4
{[%clk 01:01:43]} {[%emt 00:03:31]} 15. Rh2 {[%clk 00:34:17]} {[%emt 00:05:39]}
e4 {[%clk 01:01:13]} {[%emt 00:01:00]} 16. Nxe4 {[%clk 00:28:07]} {[%emt
00:06:40]} Bxe4 {[%clk 01:01:34]} {[%emt 00:00:10]} 17. Be3 {[%clk 00:27:58]}
{[%emt 00:00:37]} Nxc2+ {[%clk 00:59:54]} {[%emt 00:02:11]} 18. Qxc2 {[%clk
00:27:25]} {[%emt 00:01:03]} Bb4+ {[%clk 01:00:20]} {[%emt 00:00:05]} 19. Kd1
{[%clk 00:24:48]} {[%emt 00:03:06]} Nxd3 {[%clk 01:00:35]} {[%emt 00:00:15]}
0-1